[Event "***Titled Tuesday 3|2 Blitz"]
[Site "Chess.com"]
[Date "2017.02.07"]
[Round "6"]
[White "MagnusCarlsen"]
[Black "Aguiar94"]
[Result "1-0"]
[WhiteElo "2990"]
[BlackElo "2469"]
[TimeControl "180+2"]
[EndTime "14:21:25 PST"]
[Termination "MagnusCarlsen won by resignation"]

1. d4 {[%clk 0:03:02]} 1... Nf6 {[%clk 0:03:00.2]} 2. Bf4 {[%clk 0:03:02.9]}
2... d5 {[%clk 0:03:00.6]} 3. e3 {[%clk 0:03:02.7]} 3... c5 {[%clk 0:03:02]} 4.
c3 {[%clk 0:03:01.6]} 4... Nc6 {[%clk 0:03:02]} 5. Nd2 {[%clk 0:03:02.7]} 5...
e6 {[%clk 0:02:58.6]} 6. Ngf3 {[%clk 0:03:03.1]} 6... Bd6 {[%clk 0:02:59.6]} 7.
Bg3 {[%clk 0:03:04.5]} 7... O-O {[%clk 0:03:00.7]} 8. Bb5 {[%clk 0:03:05.4]}
8... a6 {[%clk 0:02:55.2]} 9. Bxc6 {[%clk 0:03:06.5]} 9... bxc6 {[%clk
0:02:57.1]} 10. Qa4 {[%clk 0:03:08.1]} 10... Bb7 {[%clk 0:02:47.7]} 11. Bxd6
{[%clk 0:03:05.4]} 11... Qxd6 {[%clk 0:02:47.9]} 12. Qa3 {[%clk 0:03:07.1]}
12... Nd7 {[%clk 0:02:49.3]} 13. Nb3 {[%clk 0:03:07.9]} 13... a5 {[%clk
0:02:47.3]} 14. O-O {[%clk 0:03:07.9]} 14... a4 {[%clk 0:02:45.1]} 15. Nxc5
{[%clk 0:03:08.5]} 15... Nxc5 {[%clk 0:02:45.9]} 16. dxc5 {[%clk 0:03:02.5]}
16... Qc7 {[%clk 0:02:44.3]} 17. Rfd1 {[%clk 0:02:57.2]} 17... e5 {[%clk
0:02:36.5]} 18. c4 {[%clk 0:02:57.4]} 18... dxc4 {[%clk 0:02:21.5]} 19. Qc3
{[%clk 0:02:58]} 19... Rfe8 {[%clk 0:02:18.4]} 20. Qxc4 {[%clk 0:02:55.8]} 20...
Re6 {[%clk 0:02:01.6]} 21. Rd2 {[%clk 0:02:53.9]} 21... a3 {[%clk 0:01:50.2]}
22. bxa3 {[%clk 0:02:53.1]} 22... Qa5 {[%clk 0:01:40.8]} 23. Rad1 {[%clk
0:02:53]} 23... Rae8 {[%clk 0:01:42]} 24. Qb4 {[%clk 0:02:53.4]} 24... Qa8
{[%clk 0:01:39.4]} 25. Rd7 {[%clk 0:02:48.9]} 25... Ba6 {[%clk 0:01:40.2]} 26.
Ng5 {[%clk 0:02:48.3]} 26... Rf6 {[%clk 0:01:38.2]} 27. Qb6 {[%clk 0:02:45.6]}
1-0

[Event "***Titled Tuesday 3|2 Blitz"]
[Site "Chess.com"]
[Date "2017.02.07"]
[Round "6"]
[White "gumersindo"]
[Black "AllStarShark"]
[Result "1/2-1/2"]
[WhiteElo "2337"]
[BlackElo "2252"]
[TimeControl "180+2"]
[EndTime "14:23:10 PST"]
[Termination "Game drawn by agreement"]

1. d4 {[%clk 0:03:02]} 1... d5 {[%clk 0:02:59.8]} 2. c4 {[%clk 0:03:02.9]} 2...
dxc4 {[%clk 0:02:47.3]} 3. Nf3 {[%clk 0:02:56.3]} 3... Nf6 {[%clk 0:02:47.2]} 4.
e3 {[%clk 0:02:55.5]} 4... Bg4 {[%clk 0:02:47.7]} 5. Bxc4 {[%clk 0:02:46.8]}
5... e6 {[%clk 0:02:47]} 6. Nc3 {[%clk 0:02:47.8]} 6... Nc6 {[%clk 0:02:37.8]}
7. h3 {[%clk 0:02:42.7]} 7... Bh5 {[%clk 0:02:35.1]} 8. Bb5 {[%clk 0:02:42.4]}
8... Bd6 {[%clk 0:02:33.8]} 9. O-O {[%clk 0:02:39.1]} 9... O-O {[%clk
0:02:33.4]} 10. Bxc6 {[%clk 0:02:37.6]} 10... bxc6 {[%clk 0:02:33]} 11. e4
{[%clk 0:02:31.1]} 11... Bb4 {[%clk 0:02:24]} 12. Bg5 {[%clk 0:02:28.9]} 12...
Be7 {[%clk 0:02:18.7]} 13. Rc1 {[%clk 0:02:24.1]} 13... Bxf3 {[%clk 0:02:15.3]}
14. gxf3 {[%clk 0:02:20.2]} 14... Nh5 {[%clk 0:02:11.1]} 15. Bxe7 {[%clk
0:02:17.8]} 15... Qxe7 {[%clk 0:02:13]} 16. Ne2 {[%clk 0:02:18.8]} 16... Qh4
{[%clk 0:02:05.3]} 17. Kh2 {[%clk 0:02:18.6]} 17... Nf4 {[%clk 0:02:01.5]} 18.
Nxf4 {[%clk 0:02:19.1]} 18... Qxf4+ {[%clk 0:02:03.4]} 19. Kg2 {[%clk
0:02:20.4]} 19... f5 {[%clk 0:01:42.3]} 20. e5 {[%clk 0:02:14.8]} 20... Rad8
{[%clk 0:01:30.4]} 21. Rxc6 {[%clk 0:02:12.9]} 21... Rxd4 {[%clk 0:01:29.4]} 22.
Qb3 {[%clk 0:02:13]} 22... Qg5+ {[%clk 0:01:22.2]} 23. Kh2 {[%clk 0:02:11.4]}
23... Qf4+ {[%clk 0:01:17.9]} 24. Kh1 {[%clk 0:02:07.8]} 24... Kh8 {[%clk
0:01:10.3]} 25. Rxe6 {[%clk 0:02:06]} 25... Qh4 {[%clk 0:00:48.6]} 26. Kg2
{[%clk 0:01:29.6]} 26... Qg5+ {[%clk 0:00:45.3]} 27. Kh2 {[%clk 0:01:29.9]}
27... Qf4+ {[%clk 0:00:45.9]} 28. Kg2 {[%clk 0:01:31]} 28... Qg5+ {[%clk
0:00:46.6]} 29. Kh2 {[%clk 0:01:28.8]} 29... Qf4+ {[%clk 0:00:47.2]} 30. Kg2
{[%clk 0:01:30]} 1/2-1/2

[Event "***Titled Tuesday 3|2 Blitz"]
[Site "Chess.com"]
[Date "2017.02.07"]
[Round "6"]
[White "stefanodinn"]
[Black "Mornar1951"]
[Result "0-1"]
[WhiteElo "2230"]
[BlackElo "2559"]
[TimeControl "180+2"]
[EndTime "14:23:30 PST"]
[Termination "Mornar1951 won on time"]

1. e4 {[%clk 0:03:00.3]} 1... d5 {[%clk 0:02:58.7]} 2. exd5 {[%clk 0:02:59.9]}
2... Nf6 {[%clk 0:02:59.9]} 3. Bb5+ {[%clk 0:02:56.1]} 3... Nbd7 {[%clk
0:03:00.6]} 4. c4 {[%clk 0:02:54]} 4... a6 {[%clk 0:03:01]} 5. Ba4 {[%clk
0:02:54.8]} 5... b5 {[%clk 0:03:01.7]} 6. cxb5 {[%clk 0:02:51]} 6... Nxd5 {[%clk
0:03:02.9]} 7. Nc3 {[%clk 0:02:40.1]} 7... Nf4 {[%clk 0:03:00.2]} 8. d4 {[%clk
0:02:06.8]} 8... Nxg2+ {[%clk 0:02:58.5]} 9. Kf1 {[%clk 0:02:07.5]} 9... Nh4
{[%clk 0:02:59.3]} 10. Bg5 {[%clk 0:01:36.6]} 10... Bb7 {[%clk 0:02:49.3]} 11.
d5 {[%clk 0:01:20.7]} 11... Ng6 {[%clk 0:02:44.2]} 12. Nf3 {[%clk 0:01:11.3]}
12... f6 {[%clk 0:02:39]} 13. Be3 {[%clk 0:01:02]} 13... Kf7 {[%clk 0:02:34.6]}
14. Nd4 {[%clk 0:00:18.4]} 14... Nb6 {[%clk 0:02:23.6]} 15. Ne6 {[%clk 0:00:17]}
15... Qd6 {[%clk 0:02:24.5]} 16. Bc5 {[%clk 0:00:12.4]} 16... Qe5 {[%clk
0:02:20.6]} 17. Bxb6 {[%clk 0:00:06.4]} 17... cxb6 {[%clk 0:02:20.7]} 18. Bb3
{[%clk 0:00:06.7]} 18... Qd6 {[%clk 0:02:16.6]} 19. Rg1 {[%clk 0:00:03.2]} 19...
axb5 {[%clk 0:02:15.8]} 20. Qf3 {[%clk 0:00:03]} 20... Ne5 {[%clk 0:02:11]} 21.
Qh5+ {[%clk 0:00:03]} 21... g6 {[%clk 0:02:11.1]} 22. Qh3 {[%clk 0:00:03.3]}
22... b4 {[%clk 0:02:05.9]} 23. Ne4 {[%clk 0:00:04]} 23... Qd7 {[%clk
0:02:03.3]} 24. N4g5+ {[%clk 0:00:04.2]} 24... fxg5 {[%clk 0:02:00.2]} 25. d6
{[%clk 0:00:04.9]} 25... Qb5+ {[%clk 0:01:59]} 26. Ke1 {[%clk 0:00:03.9]} 26...
Nf3+ {[%clk 0:01:43.7]} 27. Kd1 {[%clk 0:00:03.3]} 27... Qd3+ {[%clk 0:01:41.2]}
0-1

[Event "***Titled Tuesday 3|2 Blitz"]
[Site "Chess.com"]
[Date "2017.02.07"]
[Round "6"]
[White "Daniela_Movileanu"]
[Black "twitchTriniCupid"]
[Result "1-0"]
[WhiteElo "2084"]
[BlackElo "2121"]
[TimeControl "180+2"]
[EndTime "14:23:37 PST"]
[Termination "Daniela_Movileanu won by resignation"]

1. e4 {[%clk 0:03:00.1]} 1... c6 {[%clk 0:02:58.6]} 2. d4 {[%clk 0:02:52.8]}
2... d5 {[%clk 0:03:00.5]} 3. Nd2 {[%clk 0:02:53.8]} 3... dxe4 {[%clk
0:02:59.1]} 4. Nxe4 {[%clk 0:02:55.7]} 4... Bf5 {[%clk 0:02:59.3]} 5. Ng3 {[%clk
0:02:56]} 5... Bg6 {[%clk 0:03:00.6]} 6. Nf3 {[%clk 0:02:56.2]} 6... Nd7 {[%clk
0:03:01.4]} 7. h4 {[%clk 0:02:57]} 7... h6 {[%clk 0:03:01.5]} 8. h5 {[%clk
0:02:58.1]} 8... Bh7 {[%clk 0:03:02.9]} 9. Bd3 {[%clk 0:02:59.6]} 9... Bxd3
{[%clk 0:03:04.1]} 10. Qxd3 {[%clk 0:03:01.5]} 10... e6 {[%clk 0:03:05.5]} 11.
Bd2 {[%clk 0:03:02.8]} 11... Ngf6 {[%clk 0:03:06.7]} 12. O-O-O {[%clk
0:03:03.9]} 12... Be7 {[%clk 0:03:06.5]} 13. Qe2 {[%clk 0:03:05.4]} 13... O-O
{[%clk 0:03:04.4]} 14. Kb1 {[%clk 0:03:06.9]} 14... a5 {[%clk 0:03:03.5]} 15.
Ne4 {[%clk 0:03:06.1]} 15... Nxe4 {[%clk 0:03:04.2]} 16. Qxe4 {[%clk 0:03:08]}
16... Nf6 {[%clk 0:03:05.8]} 17. Qe2 {[%clk 0:03:09]} 17... Qd5 {[%clk
0:03:05.1]} 18. g4 {[%clk 0:03:07.6]} 18... Ne4 {[%clk 0:02:40.7]} 19. Be3
{[%clk 0:03:00.2]} 19... Qb5 {[%clk 0:02:37.2]} 20. Qxb5 {[%clk 0:02:53.7]}
20... cxb5 {[%clk 0:02:36.8]} 21. Ne5 {[%clk 0:02:54.6]} 21... Rfd8 {[%clk
0:02:35.3]} 22. f3 {[%clk 0:02:48.4]} 22... Nd6 {[%clk 0:02:27.4]} 23. Rd3
{[%clk 0:02:31.7]} 23... Nc4 {[%clk 0:02:23.7]} 24. Bf4 {[%clk 0:02:26.5]} 24...
Rd5 {[%clk 0:02:09.4]} 25. Rhd1 {[%clk 0:02:16.6]} 25... Rad8 {[%clk 0:02:09.1]}
26. Kc1 {[%clk 0:01:48.5]} 26... Bg5 {[%clk 0:01:48.1]} 27. Bxg5 {[%clk
0:01:39.3]} 27... hxg5 {[%clk 0:01:34.7]} 28. b3 {[%clk 0:01:29.9]} 28... Nxe5
{[%clk 0:01:07.3]} 29. dxe5 {[%clk 0:01:31.8]} 29... Rxd3 {[%clk 0:01:08.9]} 30.
Rxd3 {[%clk 0:01:32.4]} 30... Rxd3 {[%clk 0:01:10.4]} 31. cxd3 {[%clk
0:01:34.1]} 31... Kf8 {[%clk 0:01:11.7]} 32. Kd2 {[%clk 0:01:33.4]} 32... Ke7
{[%clk 0:01:12.1]} 33. Ke3 {[%clk 0:01:33.3]} 33... Kd7 {[%clk 0:01:13.3]} 34.
f4 {[%clk 0:01:30.1]} 34... f6 {[%clk 0:01:00.5]} 35. exf6 {[%clk 0:01:28.5]}
35... gxf6 {[%clk 0:01:01.4]} 36. fxg5 {[%clk 0:01:29]} 36... fxg5 {[%clk
0:01:01.9]} 37. Ke4 {[%clk 0:01:30.6]} 37... Kd6 {[%clk 0:00:49.7]} 38. h6
{[%clk 0:01:31]} 1-0

[Event "***Titled Tuesday 3|2 Blitz"]
[Site "Chess.com"]
[Date "2017.02.07"]
[Round "6"]
[White "chorejason"]
[Black "pedroholly22"]
[Result "0-1"]
[WhiteElo "2027"]
[BlackElo "2287"]
[TimeControl "180+2"]
[EndTime "14:23:52 PST"]
[Termination "pedroholly22 won by resignation"]

1. e4 {[%clk 0:03:02]} 1... e6 {[%clk 0:02:58.2]} 2. d4 {[%clk 0:03:02.7]} 2...
d5 {[%clk 0:02:58.3]} 3. Nd2 {[%clk 0:03:04.2]} 3... Nc6 {[%clk 0:02:50]} 4.
Ngf3 {[%clk 0:02:56]} 4... Nf6 {[%clk 0:02:49.9]} 5. e5 {[%clk 0:02:56.5]} 5...
Nd7 {[%clk 0:02:50.9]} 6. c3 {[%clk 0:02:54.2]} 6... f6 {[%clk 0:02:47.3]} 7.
exf6 {[%clk 0:02:53.6]} 7... Nxf6 {[%clk 0:02:45.9]} 8. Bd3 {[%clk 0:02:54.7]}
8... Bd6 {[%clk 0:02:47.2]} 9. O-O {[%clk 0:02:53.1]} 9... O-O {[%clk
0:02:48.6]} 10. Qc2 {[%clk 0:02:45.1]} 10... e5 {[%clk 0:02:44.8]} 11. dxe5
{[%clk 0:02:43]} 11... Nxe5 {[%clk 0:02:44.5]} 12. Nxe5 {[%clk 0:02:44.4]} 12...
Bxe5 {[%clk 0:02:46.4]} 13. Nf3 {[%clk 0:02:45.9]} 13... Bd6 {[%clk 0:02:47.5]}
14. Bg5 {[%clk 0:02:44.6]} 14... h6 {[%clk 0:02:46.3]} 15. Bh4 {[%clk
0:02:40.1]} 15... c6 {[%clk 0:02:46]} 16. Nd4 {[%clk 0:02:32.8]} 16... Bxh2+
{[%clk 0:02:38.8]} 17. Kxh2 {[%clk 0:02:28.3]} 17... Ng4+ {[%clk 0:02:38.6]} 18.
Kg3 {[%clk 0:01:47]} 18... g5 {[%clk 0:02:37.4]} 19. Bh7+ {[%clk 0:01:41.4]}
19... Kh8 {[%clk 0:02:36.9]} 20. Nf5 {[%clk 0:01:32]} 20... gxh4+ {[%clk
0:02:27.8]} 21. Kxg4 {[%clk 0:01:32.8]} 21... Qg5+ {[%clk 0:02:23.2]} 22. Kh3
{[%clk 0:01:33.8]} 22... Rxf5 {[%clk 0:02:20.6]} 23. Kh2 {[%clk 0:01:23.6]}
23... Kxh7 {[%clk 0:02:20.1]} 24. g4 {[%clk 0:01:10.9]} 24... Qf4+ {[%clk
0:01:44.2]} 25. Kh1 {[%clk 0:00:56.2]} 25... Qxg4 {[%clk 0:01:42.6]} 26. Rae1
{[%clk 0:00:27.3]} 26... Qh3+ {[%clk 0:01:39.4]} 27. Kg1 {[%clk 0:00:28.7]}
27... Bd7 {[%clk 0:01:39.4]} 28. Re7+ {[%clk 0:00:27.8]} 28... Kh8 {[%clk
0:01:40.2]} 29. f4 {[%clk 0:00:20.2]} 29... Rg8+ {[%clk 0:01:38.3]} 30. Kf2
{[%clk 0:00:21.7]} 30... Rxf4+ {[%clk 0:01:23.6]} 31. Ke2 {[%clk 0:00:17.8]}
31... Qxf1+ {[%clk 0:01:23.4]} 0-1

[Event "***Titled Tuesday 3|2 Blitz"]
[Site "Chess.com"]
[Date "2017.02.07"]
[Round "6"]
[White "gammagramma"]
[Black "Angry_Serb"]
[Result "1-0"]
[WhiteElo "2444"]
[BlackElo "2408"]
[TimeControl "180+2"]
[EndTime "14:24:11 PST"]
[Termination "gammagramma won by resignation"]

1. d4 {[%clk 0:03:02]} 1... Nf6 {[%clk 0:02:57.9]} 2. Bg5 {[%clk 0:02:56.7]}
2... Ne4 {[%clk 0:02:56.7]} 3. Bf4 {[%clk 0:02:57.2]} 3... e5 {[%clk 0:02:58.1]}
4. Bxe5 {[%clk 0:02:48.6]} 4... Nc6 {[%clk 0:02:56.6]} 5. Nd2 {[%clk 0:02:39.7]}
5... d6 {[%clk 0:01:56.7]} 6. Nxe4 {[%clk 0:02:31.3]} 6... dxe5 {[%clk
0:01:56.9]} 7. dxe5 {[%clk 0:02:29.2]} 7... Qe7 {[%clk 0:01:57.3]} 8. Nf3 {[%clk
0:02:27.3]} 8... Nxe5 {[%clk 0:01:49.1]} 9. Nxe5 {[%clk 0:02:26.9]} 9... Qxe5
{[%clk 0:01:51]} 10. Nc3 {[%clk 0:02:26.1]} 10... Bb4 {[%clk 0:01:50.1]} 11. Qd3
{[%clk 0:02:26.3]} 11... Bf5 {[%clk 0:01:49.6]} 12. Qg3 {[%clk 0:02:20.5]} 12...
Qxg3 {[%clk 0:01:47.7]} 13. hxg3 {[%clk 0:02:21.2]} 13... O-O-O {[%clk
0:01:29.1]} 14. Rc1 {[%clk 0:02:09.7]} 14... Rd6 {[%clk 0:01:28.9]} 15. Rh4
{[%clk 0:02:06.4]} 15... Bxc3+ {[%clk 0:01:10.9]} 16. bxc3 {[%clk 0:02:06.9]}
16... Rc6 {[%clk 0:01:12.5]} 17. e4 {[%clk 0:02:05.3]} 17... Re8 {[%clk
0:01:08.7]} 18. Bd3 {[%clk 0:02:04.9]} 18... Bg6 {[%clk 0:01:05.9]} 19. Kd2
{[%clk 0:02:01.7]} 19... h6 {[%clk 0:00:45.1]} 20. Re1 {[%clk 0:01:53.6]} 20...
Re5 {[%clk 0:00:42.8]} 21. f4 {[%clk 0:01:48.6]} 21... Ra5 {[%clk 0:00:34.9]}
22. f5 {[%clk 0:01:49.6]} 22... Bh7 {[%clk 0:00:36.3]} 23. e5 {[%clk 0:01:51]}
23... Kd8 {[%clk 0:00:24.6]} 24. a4 {[%clk 0:01:43]} 24... Rac5 {[%clk
0:00:24.8]} 25. Rg4 {[%clk 0:01:38]} 25... g5 {[%clk 0:00:25.5]} 26. Rd4+ {[%clk
0:01:34.6]} 26... Kc8 {[%clk 0:00:18.1]} 27. g4 {[%clk 0:01:34.4]} 27... Bg8
{[%clk 0:00:13.3]} 28. f6 {[%clk 0:01:34.3]} 28... b5 {[%clk 0:00:03.7]} 29.
axb5 {[%clk 0:01:33.8]} 29... Rb6 {[%clk 0:00:03.9]} 30. Bf5+ {[%clk 0:01:32.7]}
30... Kb7 {[%clk 0:00:05.6]} 31. c4 {[%clk 0:01:33.7]} 31... a6 {[%clk
0:00:03.8]} 32. Rd8 {[%clk 0:01:29.6]} 32... Rxc4 {[%clk 0:00:04.8]} 33. bxa6+
{[%clk 0:01:29.7]} 33... Rxa6 {[%clk 0:00:06.5]} 34. Bc8+ {[%clk 0:01:28.1]}
34... Ka7 {[%clk 0:00:07]} 1-0

[Event "***Titled Tuesday 3|2 Blitz"]
[Site "Chess.com"]
[Date "2017.02.07"]
[Round "6"]
[White "Generalas"]
[Black "Vrolijk"]
[Result "0-1"]
[WhiteElo "2177"]
[BlackElo "2301"]
[TimeControl "180+2"]
[EndTime "14:24:11 PST"]
[Termination "Vrolijk won on time"]

1. Nf3 {[%clk 0:03:02]} 1... Nf6 {[%clk 0:02:59]} 2. c4 {[%clk 0:03:01.5]} 2...
e6 {[%clk 0:02:58.4]} 3. b3 {[%clk 0:02:54.9]} 3... a6 {[%clk 0:02:56.4]} 4. g3
{[%clk 0:02:54.2]} 4... b5 {[%clk 0:02:57.8]} 5. Bg2 {[%clk 0:02:52.8]} 5... Bb7
{[%clk 0:02:59]} 6. O-O {[%clk 0:02:53.1]} 6... c5 {[%clk 0:03:00.1]} 7. Bb2
{[%clk 0:02:52.7]} 7... Be7 {[%clk 0:03:00.1]} 8. d3 {[%clk 0:02:52.5]} 8... O-O
{[%clk 0:02:59.6]} 9. Nc3 {[%clk 0:02:51.9]} 9... d6 {[%clk 0:02:59.1]} 10. cxb5
{[%clk 0:02:51.2]} 10... Nbd7 {[%clk 0:02:59.9]} 11. bxa6 {[%clk 0:02:49.6]}
11... Rxa6 {[%clk 0:02:53.1]} 12. d4 {[%clk 0:02:44.5]} 12... Qa8 {[%clk
0:02:49]} 13. dxc5 {[%clk 0:02:40.4]} 13... Nxc5 {[%clk 0:02:50.9]} 14. Ne1
{[%clk 0:02:35.3]} 14... Bxg2 {[%clk 0:02:46.8]} 15. Nxg2 {[%clk 0:02:35.8]}
15... d5 {[%clk 0:02:48.2]} 16. Nf4 {[%clk 0:02:21.2]} 16... Rb8 {[%clk
0:02:43.5]} 17. Nd3 {[%clk 0:02:19.5]} 17... Nce4 {[%clk 0:02:43]} 18. Na4
{[%clk 0:02:10.7]} 18... h5 {[%clk 0:02:18.1]} 19. h4 {[%clk 0:01:45.6]} 19...
Bd6 {[%clk 0:02:15]} 20. Be5 {[%clk 0:01:40.6]} 20... Qa7 {[%clk 0:02:07.5]} 21.
Kg2 {[%clk 0:01:20.9]} 21... Ng4 {[%clk 0:02:01.6]} 22. Bxd6 {[%clk 0:01:16.6]}
22... Rxd6 {[%clk 0:02:01.4]} 23. Rc1 {[%clk 0:01:12.6]} 23... Nexf2 {[%clk
0:02:00.2]} 24. Nxf2 {[%clk 0:00:50.8]} 24... Ne3+ {[%clk 0:01:59.5]} 25. Kf3
{[%clk 0:00:49.6]} 25... e5 {[%clk 0:01:49]} 26. Nc5 {[%clk 0:00:39.4]} 26...
Nxd1 {[%clk 0:01:45.1]} 27. Rfxd1 {[%clk 0:00:39.6]} 27... Rf6+ {[%clk
0:01:44.3]} 28. Kg2 {[%clk 0:00:40.1]} 28... Rc8 {[%clk 0:01:35.5]} 29. b4
{[%clk 0:00:39.7]} 29... Qxa2 {[%clk 0:01:35.6]} 30. Kf1 {[%clk 0:00:36.3]}
30... e4 {[%clk 0:01:30.3]} 31. Nxe4 {[%clk 0:00:30.2]} 31... dxe4 {[%clk
0:01:19.5]} 0-1

[Event "***Titled Tuesday 3|2 Blitz"]
[Site "Chess.com"]
[Date "2017.02.07"]
[Round "6"]
[White "jcibarra"]
[Black "PaulfromSPb"]
[Result "1-0"]
[WhiteElo "2642"]
[BlackElo "2461"]
[TimeControl "180+2"]
[EndTime "14:24:20 PST"]
[Termination "jcibarra won by resignation"]

1. e4 {[%clk 0:03:02]} 1... c5 {[%clk 0:02:59.8]} 2. Nf3 {[%clk 0:03:02.2]} 2...
a6 {[%clk 0:03:00.2]} 3. c4 {[%clk 0:03:01.9]} 3... e6 {[%clk 0:03:00.7]} 4. Nc3
{[%clk 0:03:00.6]} 4... Nc6 {[%clk 0:03:01.5]} 5. d4 {[%clk 0:03:01.1]} 5...
cxd4 {[%clk 0:03:01.6]} 6. Nxd4 {[%clk 0:03:03]} 6... Qc7 {[%clk 0:03:01.7]} 7.
Be3 {[%clk 0:02:52.3]} 7... Nf6 {[%clk 0:03:00.9]} 8. a3 {[%clk 0:02:47.3]} 8...
Ne5 {[%clk 0:02:58.9]} 9. Be2 {[%clk 0:02:46.3]} 9... Nxc4 {[%clk 0:02:58.1]}
10. Bxc4 {[%clk 0:02:46.8]} 10... Qxc4 {[%clk 0:02:58.8]} 11. Rc1 {[%clk
0:02:48.5]} 11... Qc7 {[%clk 0:02:33.4]} 12. Ncb5 {[%clk 0:02:39.3]} 12... Qb8
{[%clk 0:02:09.5]} 13. Nc7+ {[%clk 0:02:38.2]} 13... Kd8 {[%clk 0:02:10.8]} 14.
Nxa8 {[%clk 0:02:34.9]} 14... Qxa8 {[%clk 0:02:12]} 15. Qc2 {[%clk 0:02:36.6]}
15... Bd6 {[%clk 0:02:11.8]} 16. f4 {[%clk 0:02:31.3]} 16... Ng4 {[%clk
0:02:01.4]} 17. Bd2 {[%clk 0:02:23.5]} 17... f6 {[%clk 0:01:54.1]} 18. h3 {[%clk
0:02:19.8]} 18... Nh6 {[%clk 0:01:54.8]} 19. e5 {[%clk 0:02:19.5]} 19... fxe5
{[%clk 0:01:48.8]} 20. fxe5 {[%clk 0:02:21.4]} 20... Bxe5 {[%clk 0:01:50]} 21.
Bg5+ {[%clk 0:02:17.8]} 21... Bf6 {[%clk 0:01:50.9]} 22. Qc7+ {[%clk 0:02:10.7]}
22... Ke7 {[%clk 0:01:51.8]} 23. Bxf6+ {[%clk 0:02:09.9]} 23... gxf6 {[%clk
0:01:51.9]} 24. O-O {[%clk 0:02:04]} 24... Nf7 {[%clk 0:01:37.3]} 25. Nxe6
{[%clk 0:01:54.1]} 25... b6 {[%clk 0:01:19.7]} 26. Rce1 {[%clk 0:01:39.3]} 26...
Ne5 {[%clk 0:01:13.9]} 27. Rxe5 {[%clk 0:01:29.2]} 27... fxe5 {[%clk 0:01:12.6]}
28. Qxe5 {[%clk 0:01:28.6]} 28... dxe6 {[%clk 0:01:09.5]} 29. Qg7+ {[%clk
0:01:26.4]} 29... Kd6 {[%clk 0:01:09.5]} 30. Rd1+ {[%clk 0:01:27.9]} 30... Kc6
{[%clk 0:01:02.7]} 31. Rc1+ {[%clk 0:01:21.4]} 31... Kb5 {[%clk 0:00:57.8]} 32.
Qxh8 {[%clk 0:01:23.3]} 32... Bb7 {[%clk 0:00:50.4]} 33. Qc3 {[%clk 0:01:14.5]}
33... Qf8 {[%clk 0:00:40.8]} 34. a4+ {[%clk 0:01:07.7]} 34... Kxa4 {[%clk
0:00:38.6]} 35. Qc4+ {[%clk 0:01:09.1]} 1-0

[Event "***Titled Tuesday 3|2 Blitz"]
[Site "Chess.com"]
[Date "2017.02.07"]
[Round "6"]
[White "HouseOfDurin"]
[Black "proxy6"]
[Result "0-1"]
[WhiteElo "1897"]
[BlackElo "2096"]
[TimeControl "180+2"]
[EndTime "14:24:27 PST"]
[Termination "proxy6 won on time"]

1. d4 {[%clk 0:03:02]} 1... Nf6 {[%clk 0:03:00.2]} 2. Bg5 {[%clk 0:03:02.6]}
2... d5 {[%clk 0:02:59.1]} 3. Bxf6 {[%clk 0:03:03.4]} 3... exf6 {[%clk
0:02:59.2]} 4. e3 {[%clk 0:03:00.6]} 4... f5 {[%clk 0:02:58.9]} 5. c4 {[%clk
0:03:01.4]} 5... Be6 {[%clk 0:02:57.3]} 6. Nc3 {[%clk 0:02:54.5]} 6... c6 {[%clk
0:02:56.2]} 7. cxd5 {[%clk 0:02:50.4]} 7... cxd5 {[%clk 0:02:55.9]} 8. g3 {[%clk
0:02:48.2]} 8... Nd7 {[%clk 0:02:37.4]} 9. Bg2 {[%clk 0:02:46.3]} 9... Nf6
{[%clk 0:02:38.6]} 10. Nge2 {[%clk 0:02:46.4]} 10... Bd6 {[%clk 0:02:32]} 11.
O-O {[%clk 0:02:46.4]} 11... O-O {[%clk 0:02:31.9]} 12. a3 {[%clk 0:02:02.9]}
12... a6 {[%clk 0:02:20.2]} 13. Na4 {[%clk 0:01:51.8]} 13... Rc8 {[%clk
0:02:16.5]} 14. Rc1 {[%clk 0:01:36.9]} 14... Ne4 {[%clk 0:01:57.2]} 15. f3
{[%clk 0:01:15.1]} 15... Nf6 {[%clk 0:01:55.2]} 16. Nc5 {[%clk 0:01:16.1]} 16...
Qe7 {[%clk 0:01:47]} 17. b4 {[%clk 0:01:00]} 17... a5 {[%clk 0:01:43.4]} 18. Qd3
{[%clk 0:00:44.6]} 18... b6 {[%clk 0:01:38.2]} 19. Na4 {[%clk 0:00:29.8]} 19...
Rb8 {[%clk 0:01:35.1]} 20. b5 {[%clk 0:00:17.2]} 20... Bxa3 {[%clk 0:01:31.2]}
21. Rc6 {[%clk 0:00:18.7]} 21... Nd7 {[%clk 0:01:14.8]} 22. e4 {[%clk 0:00:08]}
22... fxe4 {[%clk 0:01:08.9]} 23. fxe4 {[%clk 0:00:09.9]} 23... dxe4 {[%clk
0:01:04]} 24. Bxe4 {[%clk 0:00:10.4]} 24... g6 {[%clk 0:01:05]} 25. d5 {[%clk
0:00:05.4]} 25... Nc5 {[%clk 0:01:01.5]} 26. Nxc5 {[%clk 0:00:04.4]} 26... Bxc5+
{[%clk 0:01:03.3]} 27. Kg2 {[%clk 0:00:03]} 27... Bd7 {[%clk 0:00:55.6]} 28.
Rcf6 {[%clk 0:00:03]} 28... Rbe8 {[%clk 0:00:53.8]} 29. Nc3 {[%clk 0:00:02.2]}
29... Bb4 {[%clk 0:00:53.7]} 0-1

[Event "***Titled Tuesday 3|2 Blitz"]
[Site "Chess.com"]
[Date "2017.02.07"]
[Round "6"]
[White "salomez"]
[Black "latigre"]
[Result "1-0"]
[WhiteElo "2143"]
[BlackElo "1740"]
[TimeControl "180+2"]
[EndTime "14:24:49 PST"]
[Termination "salomez won by checkmate"]

1. e4 {[%clk 0:03:02]} 1... e5 {[%clk 0:02:59.3]} 2. Nf3 {[%clk 0:03:00]} 2...
Nc6 {[%clk 0:03:00.7]} 3. d4 {[%clk 0:03:00.3]} 3... exd4 {[%clk 0:03:00.2]} 4.
Nxd4 {[%clk 0:03:01.3]} 4... Qh4 {[%clk 0:03:00.9]} 5. Nc3 {[%clk 0:02:46.5]}
5... Bb4 {[%clk 0:02:59.9]} 6. Be2 {[%clk 0:01:59.2]} 6... Qxe4 {[%clk
0:02:54.7]} 7. Nxc6 {[%clk 0:01:56.3]} 7... Bxc3+ {[%clk 0:02:53.7]} 8. bxc3
{[%clk 0:01:55.6]} 8... Qxc6 {[%clk 0:02:55.2]} 9. O-O {[%clk 0:01:54.9]} 9...
Ne7 {[%clk 0:02:24.8]} 10. Bf3 {[%clk 0:01:31.4]} 10... Qxc3 {[%clk 0:01:43.8]}
11. Bg5 {[%clk 0:01:19.8]} 11... f6 {[%clk 0:01:29.7]} 12. Bd2 {[%clk 0:01:19]}
12... Qc5 {[%clk 0:01:02.9]} 13. Rb1 {[%clk 0:00:56.9]} 13... a5 {[%clk
0:00:58.8]} 14. Be3 {[%clk 0:00:52.9]} 14... Qc4 {[%clk 0:00:39.2]} 15. Re1
{[%clk 0:00:38.7]} 15... O-O {[%clk 0:00:28.2]} 16. Bd4 {[%clk 0:00:30]} 16...
Qf7 {[%clk 0:00:20.9]} 17. Bxb7 {[%clk 0:00:27.3]} 17... Bxb7 {[%clk 0:00:20.9]}
18. Rxb7 {[%clk 0:00:28]} 18... Nd5 {[%clk 0:00:17.9]} 19. c4 {[%clk 0:00:25.1]}
19... Nb4 {[%clk 0:00:15.2]} 20. Rxc7 {[%clk 0:00:23.5]} 20... Nc6 {[%clk
0:00:14.3]} 21. Bc5 {[%clk 0:00:21.8]} 21... Rfe8 {[%clk 0:00:13.9]} 22. Rxe8+
{[%clk 0:00:18.8]} 22... Rxe8 {[%clk 0:00:15.8]} 23. h3 {[%clk 0:00:19.4]} 23...
Ne5 {[%clk 0:00:14.7]} 24. Bd6 {[%clk 0:00:17.8]} 24... Qe6 {[%clk 0:00:14.6]}
25. c5 {[%clk 0:00:17.8]} 25... Kf7 {[%clk 0:00:11.8]} 26. Bxe5 {[%clk
0:00:18.5]} 26... Qxe5 {[%clk 0:00:12.6]} 27. Qxd7+ {[%clk 0:00:19]} 27... Kg6
{[%clk 0:00:12.9]} 28. Qxg7+ {[%clk 0:00:19.6]} 28... Kf5 {[%clk 0:00:13.5]} 29.
Qg4# {[%clk 0:00:20.2]} 1-0